bitfinex-derivatives/quotes_BNBF0:USTF0_20250630
["timestamp","ask_amount","ask_price","bid_price","bid_amount"]
[1751294846261,0.26604081,654.5,653.56,1.078535]
[1751294846557,0.26604081,654.5,653.55,2.524]
[1751294846756,0.26604081,654.5,653.56,1.07854556]
[1751294846955,0.26604081,654.5,653.55,2.524]
[1751294847158,0.26604081,654.5,653.56,1.07854556]
[1751294847357,0.26604081,654.5,653.55,2.524]
[1751294847562,0.26604081,654.5,653.56,1.07867473]
[1751294847861,0.26604081,654.5,653.55,2.524]
[1751294848062,0.26604081,654.5,653.56,1.07867402]
[1751294848262,0.26604081,654.5,653.55,2.524]
[1751294848460,0.26604081,654.5,653.56,1.07871244]
[1751294848662,0.26604081,654.5,653.55,2.524]
[1751294848863,0.26604081,654.5,653.56,1.07871252]
[1751294849058,0.26604081,654.5,653.57,1.07871244]
[1751294849265,0.26604081,654.5,653.55,2.524]
[1751294849464,0.26604081,654.5,653.56,1.07875236]
[1751294849763,0.26604081,654.5,653.57,1.07875236]
[1751294849969,0.26604081,654.5,653.55,2.524]
[1751294850170,0.26604081,654.5,653.56,1.07872759]
[1751294850365,0.26604081,654.5,653.57,1.07872759]
[1751294850569,0.26604081,654.5,653.55,2.524]
[1751294850868,0.26604081,654.5,653.56,1.07877204]
[1751294851069,0.26604081,654.5,653.57,1.07877204]
[1751294851370,0.26604081,654.5,653.58,1.07874022]
[1751294851565,0.26604081,654.5,653.59,1.07874022]
[1751294851768,0.26604081,654.5,653.56,1.07874022]
[1751294851968,0.26604081,654.5,653.57,1.07874022]
[1751294852170,0.26604081,654.5,653.58,1.07874022]
[1751294852370,0.26604081,654.5,653.55,2.524]
[1751294852371,0.26604081,654.5,653.59,1.07874022]
[1751294852571,0.26604081,654.5,653.6,1.07874022]
[1751294852767,0.26604081,654.5,653.61,1.07874022]
[1751294852969,0.26604081,654.5,653.62,1.07874022]
[1751294853168,0.26604081,654.5,653.63,1.07874022]
[1751294853373,0.26604081,654.5,653.55,2.524]
[1751294853570,0.26604081,654.5,653.56,1.0786644]
[1751294853770,0.26604081,654.5,653.57,1.0786644]
[1751294853972,0.26604081,654.5,653.58,1.0786644]
[1751294854179,0.26604081,654.5,653.59,1.0786644]
[1751294854371,0.26604081,654.5,653.6,1.0786644]
[1751294854674,0.26604081,654.5,653.61,1.0786644]
[1751294854871,0.26604081,654.5,653.62,1.0786644]
[1751294855072,0.26604081,654.5,653.63,1.0786644]
[1751294855275,0.26604081,654.5,653.64,1.0786644]
[1751294855573,0.26604081,654.5,653.65,1.0786644]
[1751294855775,0.26604081,654.5,653.55,2.524]
[1751294855974,0.26604081,654.5,653.56,1.07862908]
[1751294856176,0.26604081,654.5,653.57,1.07862908]
[1751294856376,0.26604081,654.5,653.58,1.07862908]
[1751294856573,0.26604081,654.5,653.55,2.524]
[1751294856574,0.26604081,654.5,653.59,1.07862908]
[1751294856773,0.26604081,654.5,653.6,1.07862908]
[1751294857073,0.26604081,654.5,653.55,2.524]
[1751294857277,0.26604081,654.5,653.56,1.07888627]
[1751294857474,0.26604081,654.5,653.57,1.07888627]
[1751294857773,0.26604081,654.5,653.58,1.07888627]
[1751294858073,0.26604081,654.5,653.59,1.07888627]
[1751294858273,0.26604081,654.5,653.6,1.07888627]
[1751294858477,0.26604081,654.5,653.55,2.524]
[1751294858777,0.26604081,654.5,653.56,1.07891063]
[1751294858977,0.26604081,654.5,653.57,1.07891063]
[1751294859277,0.26604081,654.5,653.58,1.07891063]
[1751294859478,0.26604081,654.5,653.59,1.07891063]
[1751294859777,0.26604081,654.5,653.6,1.07891063]
[1751294859974,0.26604081,654.5,653.55,2.524]
[1751294860173,0.26604081,654.5,653.56,1.07890008]
[1751294860377,0.26604081,654.5,653.57,1.07890008]
[1751294860577,0.26604081,654.5,653.58,1.07890008]
[1751294860774,0.26604081,654.5,653.59,1.07890008]
[1751294860975,0.26604081,654.5,653.6,1.07890008]
[1751294861180,0.26604081,654.5,653.55,2.524]
[1751294861376,0.26604081,654.5,653.56,1.07888075]
[1751294861580,0.26604081,654.5,653.57,1.07888075]
[1751294861877,0.26604081,654.5,653.58,1.07888075]
[1751294862081,0.26604081,654.5,653.59,1.07888075]
[1751294862281,0.26604081,654.5,653.6,1.07888075]
[1751294862477,0.26604081,654.5,653.55,2.524]
[1751294862677,0.26604081,654.5,653.56,1.07888438]
[1751294862881,0.26604081,654.5,653.57,1.07888438]
[1751294863077,0.26604081,654.5,653.58,1.07888438]
[1751294863281,0.26604081,654.5,653.59,1.07888438]
[1751294863582,0.26604081,654.5,653.55,2.524]
[1751294863781,0.26604081,654.5,653.56,1.07887919]
[1751294864078,0.26604081,654.5,653.57,1.07887919]
[1751294864381,0.26604081,654.5,653.58,1.07887919]
[1751294864677,0.26604081,654.5,653.59,1.07887919]
[1751294864879,0.26604081,654.5,653.55,2.524]
[1751294865075,0.26604081,654.5,653.56,1.07909777]
[1751294865281,0.26604081,654.5,653.57,1.07909777]
[1751294865477,0.26604081,654.5,653.58,1.07909777]
[1751294865682,0.26604081,654.5,653.59,1.07909777]
[1751294865882,0.26604081,654.5,653.55,2.524]
[1751294866084,0.26604081,654.5,653.56,1.0791812]
[1751294866278,0.26604081,654.5,653.57,1.0791812]
[1751294866481,0.26604081,654.5,653.58,1.0791812]
[1751294866780,0.26604081,654.5,653.59,1.0791812]
[1751294866984,0.26604081,654.5,653.55,2.524]
[1751294867181,0.26604081,654.5,653.56,1.07936649]
[1751294867484,0.26604081,654.5,653.55,2.524]
[1751294867485,0.26604081,654.5,653.57,1.07936649]
[1751294867784,0.26604081,654.5,653.58,1.07936649]
[1751294867984,0.26604081,654.5,653.59,1.07936649]
[1751294868180,0.26604081,654.5,653.6,1.07936649]
[1751294868384,0.26604081,654.5,653.55,2.524]
[1751294868584,0.26604081,654.5,653.56,1.07955082]
[1751294868880,0.26604081,654.5,653.57,1.07955082]
[1751294869080,0.26604081,654.5,653.58,1.07955082]
[1751294869385,0.26604081,654.5,653.59,1.07955082]
[1751294869685,0.26604081,654.5,653.6,1.07955082]
[1751294869883,0.26604081,654.5,653.55,2.524]
[1751294870084,0.26604081,654.5,653.56,1.07963428]
[1751294870281,0.26604081,654.5,653.57,1.07963428]
[1751294870585,0.26604081,654.5,653.58,1.07963428]
[1751294870884,0.26604081,654.5,653.59,1.07963428]
[1751294871081,0.26604081,654.5,653.6,1.07963428]
[1751294871282,0.26604081,654.5,653.61,1.07963428]
[1751294871485,0.26604081,654.5,653.55,2.524]
[1751294871785,0.26604081,654.5,653.56,1.07985365]
[1751294871987,0.26604081,654.5,653.57,1.07985365]
[1751294872281,0.26604081,654.5,653.58,1.07985365]
[1751294872485,0.26604081,654.5,653.55,2.524]
[1751294872682,0.26604081,654.5,653.56,1.08004745]
[1751294872885,0.26604081,654.5,653.57,1.08004745]
[1751294873185,0.26604081,654.5,653.58,1.08004745]
[1751294873386,0.26604081,654.5,653.55,2.524]
[1751294873585,0.26604081,654.5,653.56,1.08005578]
[1751294873785,0.26604081,654.5,653.55,2.524]
[1751294873786,0.26604081,654.5,653.57,1.08005578]
[1751294873985,0.26604081,654.5,653.58,1.08005578]
[1751294874182,0.26604081,654.5,653.59,1.08009384]
[1751294874387,0.26604081,654.5,653.55,2.524]
[1751294874584,0.26604081,654.5,653.56,1.08007249]
[1751294874788,0.26604081,654.5,653.57,1.08007249]
[1751294874985,0.26604081,654.5,653.58,1.08007249]
[1751294875285,0.26604081,654.5,653.55,2.524]
[1751294875484,0.26604081,654.5,653.56,1.08004683]
[1751294875685,0.26604081,654.5,653.57,1.08004683]
[1751294875885,0.26604081,654.5,653.58,1.08004683]
[1751294876089,0.26604081,654.5,653.55,2.524]
[1751294876288,0.26604081,654.5,653.56,1.08004035]
[1751294876485,0.26604081,654.5,653.57,1.08004035]
[1751294876684,0.26604081,654.5,653.58,1.08004035]
[1751294876885,0.26604081,654.5,653.55,2.524]
[1751294877089,0.26604081,654.5,653.56,1.08001807]
[1751294877285,0.26604081,654.5,653.57,1.08001807]
[1751294877487,0.26604081,654.5,653.58,1.08001807]
[1751294877691,0.26604081,654.5,653.55,2.524]
[1751294877889,0.26604081,654.5,653.56,1.08001039]
[1751294878085,0.26604081,654.5,653.57,1.08001039]
[1751294878290,0.26604081,654.5,653.58,1.08001039]
[1751294878489,0.26604081,654.5,653.55,2.524]
[1751294878790,0.26604081,654.5,653.56,1.07999391]
[1751294878990,0.26604081,654.5,653.57,1.07999391]
[1751294879192,0.26604081,654.5,653.58,1.07999391]
[1751294879389,0.26604081,654.5,653.55,2.524]
[1751294879589,0.26604081,654.5,653.56,1.07997937]
[1751294879789,0.26604081,654.5,653.57,1.07997937]
[1751294879993,0.26604081,654.5,653.55,2.524]
[1751294880293,0.26604081,654.5,653.56,1.07997929]
[1751294880490,3.80171411,654.47,653.57,1.07997929]
[1751294880695,3.80171411,654.47,653.58,1.07997929]
[1751294880895,3.80171411,654.47,653.55,2.524]
[1751294881195,3.80171411,654.47,653.56,1.07993569]
[1751294881393,3.80171411,654.47,653.57,1.07993569]
[1751294881694,3.80171411,654.47,653.58,1.07993569]
[1751294881894,3.80171411,654.47,653.55,2.524]
[1751294882092,3.80171411,654.46,653.56,1.07973501]
[1751294882295,3.80171411,654.46,653.57,1.07973501]
[1751294882488,3.80171411,654.45,653.55,2.524]
[1751294882688,3.80171411,654.45,653.56,1.07972592]
[1751294882893,3.80171411,654.45,653.55,2.524]
[1751294882894,3.80171411,654.45,653.57,1.07972592]
[1751294883096,3.80171411,654.47,653.58,1.07972592]
[1751294883294,3.80171411,654.47,653.55,2.524]
[1751294883594,3.80171411,654.47,653.56,1.07971968]
[1751294883794,3.80171411,654.47,653.57,1.07971968]
[1751294883995,3.80171411,654.47,653.58,1.07971968]
[1751294884194,3.80171411,654.47,653.55,2.524]
[1751294884396,3.80171411,654.47,653.56,1.07971387]
[1751294884592,3.80171411,654.46,653.57,1.07971387]
[1751294884797,3.80171411,654.46,653.55,2.524]
[1751294884994,3.80171411,654.46,653.56,1.07971474]
[1751294885197,3.80171411,654.46,653.57,1.07971474]
[1751294885395,3.80171411,654.46,653.55,2.524]
[1751294885606,3.80171411,654.46,653.56,1.07971433]
[1751294885798,3.80171411,654.46,653.57,1.07971433]
[1751294886005,3.80171411,654.46,653.58,1.07964194]
[1751294886195,0.26604081,654.5,653.55,2.524]
[1751294886399,0.26604081,654.5,653.56,1.07963811]
[1751294886694,0.26604081,654.5,653.57,1.07963811]
[1751294886999,0.26604081,654.5,653.58,1.07963811]
[1751294887300,0.26604081,654.5,653.55,2.524]
[1751294887499,0.26604081,654.5,653.56,1.07964553]
[1751294887695,0.26604081,654.5,653.57,1.07964553]
[1751294887897,0.26604081,654.5,653.58,1.07964553]
[1751294888197,0.26604081,654.5,653.55,2.524]
[1751294888499,0.26604081,654.5,653.56,1.07964416]
[1751294888696,0.26604081,654.5,653.57,1.07964416]
[1751294888899,0.26604081,654.5,653.58,1.07964416]
[1751294889100,0.26604081,654.5,653.55,2.524]
[1751294889298,0.26604081,654.5,653.56,1.0796513]
[1751294889497,0.26604081,654.5,653.57,1.0796513]
[1751294889697,0.26604081,654.5,653.58,1.0796513]
[1751294889900,0.26604081,654.5,653.55,2.524]
[1751294890098,0.26604081,654.5,653.56,1.07966008]
[1751294890294,0.26604081,654.5,653.57,1.07966008]
[1751294890497,0.26604081,654.5,653.58,1.07966008]
[1751294890700,0.26604081,654.5,653.55,2.524]
[1751294890899,0.26604081,654.5,653.56,1.07967001]
[1751294891099,0.26604081,654.5,653.57,1.07967001]
[1751294891298,0.26604081,654.5,653.58,1.07967001]
[1751294891501,0.26604081,654.5,653.55,2.524]
[1751294891700,0.26604081,654.5,653.56,1.07972429]
[1751294891898,0.26604081,654.5,653.57,1.07972429]
[1751294892201,0.26604081,654.5,653.58,1.07972429]
[1751294892402,0.26604081,654.5,653.55,2.524]
[1751294892601,0.26604081,654.5,653.56,1.07969507]
[1751294892902,0.26604081,654.5,653.57,1.07969507]
[1751294893102,0.26604081,654.5,653.58,1.07969507]
[1751294893303,0.26604081,654.5,653.55,2.524]
[1751294893499,0.26604081,654.5,653.56,1.0797285]
[1751294893703,0.26604081,654.5,653.57,1.0797285]
[1751294893903,0.26604081,654.5,653.58,1.0797285]
[1751294894200,0.26604081,654.5,653.55,2.524]
[1751294894406,0.26604081,654.5,653.56,1.07972694]
[1751294894601,0.26604081,654.5,653.57,1.07972694]
[1751294894804,0.26604081,654.5,653.58,1.07972694]
[1751294895101,0.26604081,654.5,653.55,2.524]
[1751294895301,0.26604081,654.5,653.56,1.07974192]
[1751294895600,0.26604081,654.5,653.57,1.07974192]
[1751294895804,0.26604081,654.5,653.58,1.07974192]
[1751294896005,0.26604081,654.5,653.55,2.524]
[1751294896301,0.26604081,654.5,653.56,1.07973054]
[1751294896504,0.26604081,654.5,653.57,1.07973054]
[1751294896704,0.26604081,654.5,653.58,1.07973054]
[1751294896900,0.26604081,654.5,653.55,2.524]
[1751294897103,0.26604081,654.5,653.56,1.0797242]
[1751294897302,0.26604081,654.5,653.57,1.0797242]
[1751294897505,0.26604081,654.5,653.58,1.0797242]
[1751294897707,0.26604081,654.5,653.4,0.26608759]
[1751294897901,0.26604081,654.5,653.41,1.0797145]
[1751294898102,0.26604081,654.5,653.42,1.0797145]
[1751294898401,0.26604081,654.5,653.43,3.1807145]
[1751294898600,0.26604081,654.5,653.44,1.0797145]
[1751294898802,0.26604081,654.5,653.45,1.0797145]
[1751294899002,0.26604081,654.5,653.46,1.0797145]
[1751294899209,0.26604081,654.5,653.47,1.0797145]
[1751294899402,0.26604081,654.5,653.48,1.0797145]
[1751294899601,0.26604081,654.5,653.43,2.101]
[1751294899602,0.26604081,654.5,653.49,1.0797145]
[1751294899806,0.26604081,654.5,653.5,1.0797145]
[1751294900006,0.26604081,654.5,653.51,1.0797145]
[1751294900206,0.26604081,654.5,653.52,1.0797145]
[1751294900411,0.26604081,654.5,653.53,1.0797145]
[1751294900605,0.26604081,654.5,653.54,1.0797145]
[1751294900802,0.26604081,654.5,653.55,1.0797145]
[1751294909314,3.80171411,654.49,653.55,1.0797145]
[1751294909809,3.80171411,654.47,653.55,1.0797145]
[1751294910817,3.80171411,654.49,653.55,1.0797145]
[1751294911315,0.26604081,654.5,653.55,1.0797145]
[1751294911716,3.80171411,654.51,653.55,1.0797145]
[1751294911917,0.26610082,654.28,653.55,1.0797145]
[1751294915719,0.26610082,654.28,653.54,2.364]
[1751294948842,0.26610082,654.28,653.32,2.535]
[1751294949440,3.80171411,654.24,653.32,2.535]
[1751294951247,0.26610082,654.28,653.32,2.535]
[1751294951441,0.26610082,654.28,653.33,2.346]
[1751294961849,3.80171411,654.17,653.33,2.346]
[1751294962351,3.80171411,654.18,653.33,2.346]
[1751294963449,3.80171411,654.19,653.33,2.346]
[1751294964454,3.80171411,654.2,653.33,2.346]
[1751294966555,3.80171411,654.21,653.33,2.346]
[1751294967659,0.26610082,654.28,653.33,2.346]
[1751295002497,3.80171411,654.23,653.33,2.346]
[1751295002898,3.80171411,654.22,653.33,2.346]
[1751295004000,3.80171411,654.2,653.33,2.346]
[1751295004499,3.80171411,654.21,653.33,2.346]
[1751295006001,3.80171411,654.2,653.33,2.346]
[1751295006499,3.80171411,654.2,653.25,2.675]
[1751295007696,3.80171411,654.23,653.25,2.675]
[1751295008100,3.80171411,654.12,653.25,2.675]
[1751295009099,3.80171411,654.11,653.25,2.675]
[1751295009701,3.80171411,654.12,653.25,2.675]
[1751295010299,3.80171411,654.11,653.26,2.139]
[1751295011200,3.80171411,654.16,653.26,2.139]
[1751295012201,3.80171411,654.1,653.26,2.139]
[1751295012798,3.80171411,654.27,653.26,2.139]
[1751295013294,3.80171411,654.19,653.26,2.139]
[1751295013998,3.80171411,654.08,653.26,2.139]
[1751295014299,3.80171411,654.09,653.26,2.139]
[1751295014900,3.80171411,654.24,653.26,2.139]
[1751295016401,4.06781493,654.28,653.26,2.139]
[1751295017100,3.80171411,654.27,653.26,2.139]
[1751295017501,4.06781493,654.28,653.26,2.139]
[1751295018401,0.26610082,654.28,653.26,2.139]
[1751295019998,3.80171411,654.05,653.26,2.139]
[1751295020398,3.80171411,654.06,653.26,2.139]
[1751295021599,3.80171411,654.14,653.26,2.139]
[1751295022700,3.80171411,654.15,653.26,2.139]
[1751295023605,3.80171411,654.17,653.26,2.139]
[1751295024603,3.80171411,654.18,653.26,2.139]
[1751295025200,0.26610082,654.28,653.26,2.139]
[1751295025201,3.80171411,654.17,653.26,2.139]
[1751295026202,3.80171411,654.22,653.26,2.139]
[1751295027305,0.26610082,654.28,653.26,2.139]
[1751295031813,0.26610082,654.28,653.27,1.744]
[1751295042214,3.80171411,654.15,653.27,1.744]
[1751295042920,3.80171411,654.16,653.26,2.139]
[1751295043420,3.80171411,654.15,653.26,2.139]
[1751295043819,3.80171411,654.16,653.26,2.139]
[1751295044315,3.80171411,654.15,653.26,2.139]
[1751295045818,3.80171411,654.11,653.26,2.139]
[1751295046420,3.80171411,654.06,653.26,2.139]
[1751295046921,3.80171411,654.07,653.26,2.139]
[1751295047421,3.80171411,654.03,653.26,2.139]
[1751295047918,3.80171411,654.02,653.26,2.139]
[1751295048322,2.2861449,653.57,653.26,2.139]
[1751295048620,2.2861449,653.56,653.26,2.139]
[1751295049823,2.2861449,653.61,653.26,2.139]
[1751295052222,2.2861449,653.6,653.26,2.139]
[1751295052523,2.2861449,653.61,653.26,2.139]
[1751295053224,2.2861449,653.63,653.26,2.139]
[1751295054221,0.26610082,654.28,653.26,2.139]
[1751295054222,2.2861449,653.52,653.26,2.139]
[1751295055220,2.2861449,653.47,653.26,2.139]
[1751295055425,2.2861449,653.46,653.26,2.139]
[1751295056325,2.2861449,653.45,653.26,2.139]
[1751295056623,2.2861449,653.46,653.26,2.139]
[1751295057123,2.2861449,653.43,653.26,2.139]
[1751295058424,2.2861449,653.42,653.26,2.139]
[1751295058929,2.2861449,653.43,653.26,2.139]
[1751295059227,2.2861449,653.44,653.19,2.892]
[1751295059425,2.2861449,653.43,653.19,2.892]
[1751295060526,3.80171411,653.95,653.19,2.892]
[1751295060527,2.2861449,653.42,653.19,2.892]
[1751295061627,2.2861449,653.4,653.19,2.892]
[1751295063131,2.2861449,653.39,653.19,2.892]
[1751295063530,2.2861449,653.34,653.19,2.892]
[1751295064242,2.2861449,653.35,653.19,2.892]
[1751295066241,2.2861449,653.36,653.19,2.892]
[1751295066439,2.2861449,653.34,653.19,2.892]
[1751295067745,2.2861449,653.34,652.92,1.757]
[1751295067946,2.2861449,653.36,652.92,1.757]
[1751295068140,2.2861449,653.37,652.92,1.757]
[1751295069042,2.2861449,653.35,652.92,1.757]
[1751295070145,2.2861449,653.36,652.92,1.757]
[1751295070541,2.2861449,653.38,652.92,1.757]
[1751295072445,3.80171411,653.91,652.92,1.757]
[1751295072446,2.2861449,653.39,652.92,1.757]
[1751295072643,5.32239976,654.18,652.92,1.757]
[1751295072644,2.2861449,653.38,652.92,1.757]
[1751295073147,2.2861449,653.39,652.92,1.757]
[1751295075250,2.2861449,653.39,652.7,0.26639925]
[1751295075449,2.2861449,653.39,652.71,1.07614732]
[1751295075648,2.2861449,653.39,652.72,1.07614732]
[1751295075848,2.2861449,653.39,652.7,0.26639925]
[1751295076049,2.2861449,653.39,652.71,1.07614722]
[1751295076247,2.2861449,653.39,652.72,1.07614722]
[1751295076449,2.2861449,653.39,652.7,0.26639925]
[1751295076746,2.2861449,653.39,652.71,1.07609256]
[1751295076948,2.2861449,653.39,652.72,1.07609256]
[1751295077145,2.2861449,653.39,652.7,0.26639925]
[1751295077345,2.2861449,653.39,652.71,1.076033]
[1751295077545,2.2861449,653.39,652.72,1.076033]
[1751295077748,2.2861449,653.37,652.7,0.26639925]
[1751295078046,2.2861449,653.37,652.71,1.07603357]
[1751295078344,2.2861449,653.37,652.72,1.07603357]
[1751295078550,2.2861449,653.37,652.7,0.26639925]
[1751295078751,2.2861449,653.37,652.71,1.07504207]
[1751295079049,2.2861449,653.37,652.42,2.173]
[1751295079050,2.2861449,653.49,652.72,1.07504207]
[1751295079251,2.2861449,653.48,652.42,3.31743719]
[1751295079447,2.2861449,653.48,652.73,2.15]
[1751295079847,2.2861449,653.5,652.73,2.15]
[1751295080351,2.2861449,653.44,652.73,2.15]
[1751295080950,2.2861449,653.43,652.73,2.15]
[1751295083047,2.2861449,653.37,652.73,2.15]
[1751295084952,2.2861449,653.38,652.73,2.15]
[1751295085749,2.2861449,653.4,652.73,2.15]
[1751295088251,2.2861449,653.41,652.73,2.15]
[1751295090153,2.2861449,653.39,652.73,2.15]
[1751295090856,2.2861449,653.38,652.73,2.15]
[1751295094556,2.2861449,653.36,652.73,2.15]
[1751295095056,2.2861449,653.38,652.73,2.15]
[1751295097158,2.2861449,653.4,652.74,1.07448832]
[1751295097358,2.2861449,653.41,652.75,1.07448832]
[1751295097653,2.2861449,653.41,652.73,2.15]
[1751295097857,2.2861449,653.41,652.74,1.07447547]
[1751295098054,2.2861449,653.41,652.75,1.07447547]
[1751295098258,2.2861449,653.41,652.73,2.15]
[1751295098555,2.2861449,653.41,652.74,1.07452874]
[1751295098855,2.2861449,653.41,652.75,1.07452874]
[1751295099057,2.2861449,653.41,652.73,2.15]
[1751295099258,2.2861449,653.45,652.74,1.07455533]
[1751295099454,2.2861449,653.45,652.75,1.07455533]
[1751295099658,2.2861449,653.45,652.73,2.15]
[1751295099957,2.2861449,653.45,652.74,1.07455529]
[1751295100155,2.2861449,653.45,652.73,2.15]
[1751295100156,2.2861449,653.45,652.75,1.07455529]
[1751295100358,2.2861449,653.45,652.73,2.15]
[1751295100658,2.2861449,653.45,652.74,1.07466448]
[1751295100956,2.2861449,653.45,652.75,1.07466448]
[1751295101155,2.2861449,653.45,652.73,2.15]
[1751295101355,2.2861449,653.45,652.74,1.07479391]
[1751295101554,2.2861449,653.45,652.73,2.15]
[1751295101555,2.2861449,653.45,652.75,1.07479391]
[1751295101858,2.2861449,653.45,652.73,2.15]
[1751295102059,2.2861449,653.45,652.74,1.07479388]
[1751295102355,2.2861449,653.45,652.75,1.07479388]
[1751295102560,2.2861449,653.45,652.76,1.07479388]
[1751295102756,2.2861449,653.45,652.73,2.15]
[1751295102961,2.2861449,653.44,652.74,1.07493625]
[1751295103161,2.2861449,653.44,652.75,1.07493625]
[1751295103358,2.2861449,653.44,652.76,1.07493625]
[1751295103558,2.2861449,653.43,652.73,2.15]
[1751295103757,2.2861449,653.43,652.74,1.07510969]
[1751295103957,2.2861449,653.43,652.75,1.07510969]
[1751295104159,2.2861449,653.43,652.76,1.07529134]
[1751295104359,2.2861449,653.43,652.73,2.15]
[1751295104565,2.2861449,653.43,652.74,1.07529134]
[1751295104768,2.2861449,653.43,652.75,1.07529134]
[1751295105066,0.26644004,653.56,652.76,1.07529134]
[1751295105067,2.2861449,653.42,652.76,1.07529134]
[1751295105365,2.2861449,653.41,652.73,2.15]
[1751295105570,2.2861449,653.42,652.74,1.07546518]
[1751295105769,2.2861449,653.42,652.75,1.07546518]
[1751295105971,2.2861449,653.43,652.76,1.07546518]
[1751295106266,2.2861449,653.42,652.77,1.07563798]
[1751295106566,2.2861449,653.42,652.73,2.15]
[1751295106765,2.2861449,653.42,652.74,1.07563798]
[1751295106969,2.2861449,653.42,652.75,1.07563798]
[1751295107166,2.2861449,653.41,652.76,1.07563798]
[1751295107364,2.2861449,653.41,652.77,1.07563798]
[1751295107568,2.2861449,653.41,652.73,2.15]
[1751295107766,2.2861449,653.41,652.74,1.07604429]
[1751295107966,2.2861449,653.41,652.75,1.07604429]
[1751295108170,2.2861449,653.41,652.76,1.07604429]
[1751295108370,2.2861449,653.4,652.77,1.07604429]
[1751295108570,2.2861449,653.41,652.78,1.07604429]
[1751295108771,2.2861449,653.41,652.73,2.15]
[1751295109072,2.2861449,653.38,652.74,1.07309797]
[1751295109370,2.2861449,653.37,652.75,1.07309797]
[1751295109568,2.2861449,653.37,652.76,1.07309797]
[1751295109766,2.2861449,653.37,652.77,1.07309797]
[1751295109970,2.2861449,653.37,652.78,1.07309797]
[1751295110268,2.2861449,653.36,652.79,1.07309797]
[1751295110472,2.2861449,653.36,652.8,1.07309797]
[1751295110668,2.2861449,653.35,652.73,2.15]
[1751295110870,2.2861449,653.35,652.74,1.07360992]
[1751295111167,2.2861449,653.32,652.75,1.07360992]
[1751295111367,2.2861449,653.32,652.76,1.07360992]
[1751295111568,2.2861449,653.32,652.77,1.07360992]
[1751295111768,2.2861449,653.32,652.78,1.07360992]
[1751295111973,2.2861449,653.32,652.79,1.07360992]
[1751295112173,2.2861449,653.32,652.8,1.07360992]
[1751295112374,2.2861449,653.31,652.81,1.07360992]
[1751295112674,2.2861449,653.32,652.62,0.26644004]
[1751295112871,2.2861449,653.32,652.63,1.07410652]
[1751295113073,2.2861449,653.32,652.64,1.07410652]
[1751295113271,2.2861449,653.3,652.65,1.07410652]
[1751295113571,2.2861449,653.29,652.66,1.07410652]
[1751295113771,2.2861449,653.29,652.67,1.07410652]
[1751295113971,2.2861449,653.29,652.68,1.07410652]
[1751295114176,2.2861449,653.27,652.69,1.07410652]
[1751295114476,2.2861449,653.27,652.7,1.07410652]
[1751295114772,2.2861449,653.27,652.71,1.07410652]
[1751295114972,2.2861449,653.27,652.72,1.07410652]
[1751295115171,2.2861449,653.27,652.73,1.07410652]
[1751295115478,2.2861449,653.27,652.74,1.07410652]
[1751295115677,2.2861449,653.24,652.75,1.07410652]
[1751295115878,2.2861449,653.23,652.76,1.07410652]
[1751295116078,2.2861449,653.23,652.77,1.07410652]
[1751295116277,2.2861449,653.23,652.78,1.07410652]
[1751295116476,2.2861449,653.23,652.79,1.07410652]
[1751295116672,2.2861449,653.23,652.8,1.07410652]
[1751295116876,2.2861449,653.23,652.81,1.07410652]
[1751295117074,2.2861449,653.23,652.82,1.07410652]
[1751295117373,2.2861449,653.28,652.83,1.07410652]
[1751295117575,2.2861449,653.28,652.84,1.07410652]
[1751295117878,2.2861449,653.28,652.72,2.628]
[1751295118179,2.2861449,653.28,652.73,1.07511889]
[1751295118478,2.2861449,653.28,652.74,1.07511889]
[1751295118679,2.2861449,653.28,652.75,1.07511889]
[1751295118880,2.2861449,653.28,652.76,1.07511889]
[1751295119076,2.2861449,653.28,652.77,1.07511889]
[1751295119279,2.2861449,653.27,652.78,1.07511889]
[1751295119482,2.2861449,653.27,652.79,1.07511889]
[1751295119782,2.2861449,653.27,652.8,1.07511889]
[1751295119987,2.2861449,653.26,652.81,1.07511889]
[1751295120180,2.2861449,653.26,652.82,1.07511889]
[1751295120384,2.2861449,653.26,652.83,1.07511889]
[1751295120583,2.2861449,653.26,652.84,1.07511889]
[1751295120785,2.2861449,653.26,652.85,1.07511889]
[1751295120981,2.2861449,653.26,652.72,2.628]
[1751295121182,2.2861449,653.26,652.73,1.07526858]
[1751295121387,2.2861449,653.26,652.74,1.07526858]
[1751295121585,2.2861449,653.26,652.75,1.07526858]
[1751295121782,2.2861449,653.27,652.76,1.07526858]
[1751295121985,2.2861449,653.27,652.77,1.07526858]
[1751295122282,2.2861449,653.27,652.78,1.07526858]